{"text_format":"1","workbook":"xlsx","n_sheets":4,"sheets":["MENU","BOLETOS","BOLEMI","EXTRAS"],"not_rendered":{"charts":0,"images":1,"macros":1,"external_links":1,"defined_names":8,"comments":0,"pivot_tables":0},"unopened":[],"bounds":{"document_bytes":16777216,"sheet_cells":100000,"rows_first":2000,"rows_last":500,"rows_between":2000,"halvings":0,"cell_chars":16384,"cell_head_chars":4096},"cells_cut":0,"cells_raw":0,"read":"whole","date_system":"1900"}

{"sheet":"MENU","index":0,"n_rows":0,"n_cols":0,"rows_kept":0,"cut":false,"hidden":false,"merged":[]}

{"sheet":"BOLETOS","index":1,"n_rows":40,"n_cols":24,"rows_kept":40,"cut":false,"hidden":false,"merged":[]}
["Nº","T/C","F.P","COD-CLTE","NOMBRE CLIENTE","FECHA DE EMISION","L.A.","COD","BOLETO Nº","RUTA1","RUTA2","RUTA3","RUTA4","RUTA5","NOMBRE DEL PASAJER@","BOLIVIANOS","DOLARES","NETO BS","NETO USD","TAX BS","TAX USD","E.P.","SOLICITADO POR","OBSERVACIONES"]
[1,6,"C","A1","PEREZ JUAN","2014-01-05","TM",0,2550,"SRE","LPB","SRE",null,null,"MARTINEZ JESUS",1000,0]
[2,6,"P","A2","CONTADO","2014-01-05","TM",0,2551,"VVI","LPB","SRE","CBB","SRE","ZENTENO JACQUELINE",2500,0]
[3,6,"A","B2","ANULADO","2014-01-05","OB",930,2552,null,null,null,null,null,"NOMBRE00001",0,0]
[4,6,"TV","C3","TARJETA DE CREDITO","2014-01-05","OB",930,2553,"VVI","LPB","SRE","CBB","SRE","MARTINEZ SOFIA",null,100]
[5,6,"C","A1","PEREZ JUAN","2014-01-05","EJ",0,2554,"VVI","LPB","SRE",null,null,"NOMBRE00002",null,200]
[6,6,"A","B2","ANULADO","2014-01-05","EJ",0,2555,null,null,null,null,null,"NOMBRE00003",0,0]
[7,6,"P","A2","CONTADO","2014-01-06","OB",930,2556,"SRE","LPB","SRE",null,null,"NOMBRE00004",1000,0]
[8,6,"P","A2","CONTADO","2014-01-06","OB",930,2557,"SRE","LPB","SRE",null,null,"NOMBRE00005",1000,0]
[9,6,"P","A2","CONTADO","2014-01-06","TM",0,2558,"SRE","CBB",null,null,null,"NOMBRE00006",0,50]
[10,6,"TV","C3","TARJETA DE CREDITO","2014-01-06","TM",0,2559,"LPB","SRE",null,null,null,"NOMBRE00007",0,50]
[11,6,"A","B2","ANULADO","2014-01-06","Z8",464,2560,null,null,null,null,null,"NOMBRE00008",0,0]
[12,6,"C","A1","PEREZ JUAN","2014-01-06","Z8",464,2561,"VVI","LPB","SRE","CBB","SRE","NOMBRE00009",2000]
[13,6,"P","A2","CONTADO","2014-01-06","Z8",464,2562,"LPB","SRE",null,null,null,"NOMBRE00010",null,120]
[1,6,"C","A1","PEREZ JUAN","2014-01-05","TM",0,2550,"SRE","LPB","SRE",null,null,"MARTINEZ JESUS",1000,0]
[2,6,"P","A2","CONTADO","2014-01-05","TM",0,2551,"VVI","LPB","SRE","CBB","SRE","ZENTENO JACQUELINE",2500,0]
[3,6,"A","B2","ANULADO","2014-01-05","OB",930,2552,null,null,null,null,null,"NOMBRE00001",0,0]
[4,6,"TV","C3","TARJETA DE CREDITO","2014-01-05","OB",930,2553,"VVI","LPB","SRE","CBB","SRE","MARTINEZ SOFIA",null,100]
[5,6,"C","A1","PEREZ JUAN","2014-01-05","EJ",0,2554,"VVI","LPB","SRE",null,null,"NOMBRE00002",null,200]
[6,6,"A","B2","ANULADO","2014-01-05","EJ",0,2555,null,null,null,null,null,"NOMBRE00003",0,0]
[7,6,"P","A2","CONTADO","2014-01-06","OB",930,2556,"SRE","LPB","SRE",null,null,"NOMBRE00004",1000,0]
[8,6,"P","A2","CONTADO","2014-01-06","OB",930,2557,"SRE","LPB","SRE",null,null,"NOMBRE00005",1000,0]
[9,6,"P","A2","CONTADO","2014-01-06","TM",0,2558,"SRE","CBB",null,null,null,"NOMBRE00006",0,50]
[10,6,"TV","C3","TARJETA DE CREDITO","2014-01-06","TM",0,2559,"LPB","SRE",null,null,null,"NOMBRE00007",0,50]
[11,6,"A","B2","ANULADO","2014-01-06","Z8",464,2560,null,null,null,null,null,"NOMBRE00008",0,0]
[12,6,"C","A1","PEREZ JUAN","2014-01-06","Z8",464,2561,"VVI","LPB","SRE","CBB","SRE","NOMBRE00009",2000]
[13,6,"P","A2","CONTADO","2014-01-06","Z8",464,2562,"LPB","SRE",null,null,null,"NOMBRE00010",null,120]
[1,6,"C","A1","PEREZ JUAN","2014-01-05","TM",0,2550,"SRE","LPB","SRE",null,null,"MARTINEZ JESUS",1000,0]
[2,6,"P","A2","CONTADO","2014-01-05","TM",0,2551,"VVI","LPB","SRE","CBB","SRE","ZENTENO JACQUELINE",2500,0]
[3,6,"A","B2","ANULADO","2014-01-05","OB",930,2552,null,null,null,null,null,"NOMBRE00001",0,0]
[4,6,"TV","C3","TARJETA DE CREDITO","2014-01-05","OB",930,2553,"VVI","LPB","SRE","CBB","SRE","MARTINEZ SOFIA",null,100]
[5,6,"C","A1","PEREZ JUAN","2014-01-05","EJ",0,2554,"VVI","LPB","SRE",null,null,"NOMBRE00002",null,200]
[6,6,"A","B2","ANULADO","2014-01-05","EJ",0,2555,null,null,null,null,null,"NOMBRE00003",0,0]
[7,6,"P","A2","CONTADO","2014-01-06","OB",930,2556,"SRE","LPB","SRE",null,null,"NOMBRE00004",1000,0]
[8,6,"P","A2","CONTADO","2014-01-06","OB",930,2557,"SRE","LPB","SRE",null,null,"NOMBRE00005",1000,0]
[9,6,"P","A2","CONTADO","2014-01-06","TM",0,2558,"SRE","CBB",null,null,null,"NOMBRE00006",0,50]
[10,6,"TV","C3","TARJETA DE CREDITO","2014-01-06","TM",0,2559,"LPB","SRE",null,null,null,"NOMBRE00007",0,50]
[11,6,"A","B2","ANULADO","2014-01-06","Z8",464,2560,null,null,null,null,null,"NOMBRE00008",0,0]
[12,6,"C","A1","PEREZ JUAN","2014-01-06","Z8",464,2561,"VVI","LPB","SRE","CBB","SRE","NOMBRE00009",2000]
[13,6,"P","A2","CONTADO","2014-01-06","Z8",464,2562,"LPB","SRE",null,null,null,"NOMBRE00010",null,120]

{"sheet":"BOLEMI","index":2,"n_rows":2,"n_cols":14,"rows_kept":2,"cut":false,"hidden":false,"merged":[[1,6,1,10],[0,0,0,1]]}
["FECHA DE EMISION"]
["F.P","COD-CLTE","NOMBRE CLIENTE","L.A.","COD","BOLETO Nº","RUTA",null,null,null,null,"NOMBRE DEL PASAJER@","BOLIVIANOS","DOLARES"]

{"sheet":"EXTRAS","index":3,"n_rows":502,"n_cols":15,"rows_kept":502,"cut":false,"hidden":false,"merged":[]}
[null,"FP",null,"EP",null,null,null,"LA",null,null,"RB","EG"]
[null,"A","ANULADO","RMO","ROSANGELA MAIDANA OROSCO",null,"AMERICAN AIRLINES","AA","001",null,69500,6200]
[null,"C","CUENTA","SCV","SIRIAM CALVO VARGAS",null,"AEROLINEAS ARGENTINAS","AR","044",null,{"$f":"+K2+1","v":69501},{"$f":"+L2+1","v":6201}]
[null,"P","CONTADO","JMP","JESUS MARTINEZ PLANTAROSA",null,"LATAM","LA","045",null,{"$f":"+K3+1","v":69502},6202]
[null,"TV","TARJETA","ASM","ALINA SANCHEZ MARTINEZ",null,"ALITALIA","AZ","055",null,69503,6203]
[null,null,null,"HVC","HERNAN VIDAURRE CELIZ",null,"AIR FRANCE","AF","057",null,69504,6204]
[null,null,null,"PBV","PATRICIA BERRIOS VARGAS",null,"IBERIA","IB","075",null,69505,6205]
[null,null,null,"OAS","OASIS TOURS",null,"VRG LINHAS AEREAS","G3","127",null,69506,6206]
[null,null,null,"NFC","NIEVES FLORES CALDERON",null,"AVIANCA","AV","134",null,69507,6207]
[null,null,null,null,null,null,"AEROMEXICO","AM","139",null,69508,6208]
[null,"TG",null,null,null,null,"HAHN AIRLINES GMBH","HR","169",null,69509,6209]
[null,"C","COMISIONES",null,null,null,"KOREAN AIR","KE","180",null,69510,6210]
[null,"E","EGRESO",null,null,null,"TACA","TA","202",null,69511,6211]
[null,"F","FEES",null,null,null,"LUFTHANSA","LH","220",null,69512,6212]
[null,"D","DEBITO",null,null,null,"COPA AIRLINES","CM","230",null,69513,6213]
[null,null,null,null,null,null,"AMASZONAS","Z8","464",null,69514,6214]
[null,null,null,null,null,null,"TACA PERU","T0","530",null,69515,6215]
[null,null,null,null,null,null,"SKY AIRLINE","H2","605",null,69516,6216]
[null,null,null,null,null,null,"TAM MERCOSUR","PZ","692",null,69517,6217]
[null,null,null,null,null,null,"AEROCON","A4","702",null,{"$f":"+K19+1","v":69518},6218]
[null,null,null,null,null,null,"HELI AIR MONACO","YO","747",null,69519,6219]
[null,null,null,null,null,null,"BOLIVIANA DE AVIACION","OB","930",null,69520,6220]
[null,null,null,null,null,null,"AIR EUROPA","UX","996",null,69521,6221]
[null,null,null,null,null,null,"TRANSOFT LTDA","TF","000",null,69522,6222]
[null,null,null,null,null,null,"TRANSPORTES AEREOS MILITARES","TM","000",null,69523,6223,null,null,1]
[null,null,null,null,null,null,"ECO JET","EJ","000",null,69524,6224]
[null,null,null,null,null,null,null,null,null,null,69525,6225]
[null,null,null,null,null,null,null,null,null,null,69526,6226]
[null,null,null,null,null,null,null,null,null,null,69527,6227]
[null,null,null,null,null,null,null,null,null,null,69528,6228]
[null,null,null,null,null,null,null,null,null,null,69529,6229]
[null,null,null,null,null,null,null,null,null,null,69530,6230]
[null,null,null,null,null,null,null,null,null,null,69531,6231]
[null,null,null,null,null,null,null,null,null,null,69532,6232]
[null,null,null,null,null,null,null,null,null,null,69533,6233]
[null,null,null,null,null,null,null,null,null,null,{"$f":"+K35+1","v":69534},6234]
[null,null,null,null,null,null,null,null,null,null,69535,6235]
[null,null,null,null,null,null,null,null,null,null,69536,6236]
[null,null,null,null,null,null,null,null,null,null,69537,6237]
[null,null,null,null,null,null,null,null,null,null,69538,6238]
[null,null,null,null,null,null,null,null,null,null,69539,6239]
[null,null,null,null,null,null,null,null,null,null,69540,6240]
[null,null,null,null,null,null,null,null,null,null,69541,6241]
[null,null,null,null,null,null,null,null,null,null,69542,6242]
[null,null,null,null,null,null,null,null,null,null,69543,6243]
[null,null,null,null,null,null,null,null,null,null,69544,6244]
[null,null,null,null,null,null,null,null,null,null,69545,6245]
[null,null,null,null,null,null,null,null,null,null,69546,6246]
[null,null,null,null,null,null,null,null,null,null,69547,6247]
[null,null,null,null,null,null,null,null,null,null,69548,6248]
[null,null,null,null,null,null,null,null,null,null,69549,6249]
[null,null,null,null,null,null,null,null,null,null,{"$f":"+K51+1","v":69550},6250]
[null,null,null,null,null,null,null,null,null,null,69551,6251]
[null,null,null,null,null,null,null,null,null,null,69552,6252]
[null,null,null,null,null,null,null,null,null,null,69553,6253]
[null,null,null,null,null,null,null,null,null,null,69554,6254]
[null,null,null,null,null,null,null,null,null,null,69555,6255]
[null,null,null,null,null,null,null,null,null,null,69556,6256]
[null,null,null,null,null,null,null,null,null,null,69557,6257]
[null,null,null,null,null,null,null,null,null,null,69558,6258]
[null,null,null,null,null,null,null,null,null,null,69559,6259]
[null,null,null,null,null,null,null,null,null,null,69560,6260]
[null,null,null,null,null,null,null,null,null,null,69561,6261]
[null,null,null,null,null,null,null,null,null,null,69562,6262]
[null,null,null,null,null,null,null,null,null,null,69563,6263]
[null,null,null,null,null,null,null,null,null,null,69564,6264]
[null,null,null,null,null,null,null,null,null,null,69565,6265]
[null,null,null,null,null,null,null,null,null,null,{"$f":"+K67+1","v":69566},6266]
[null,null,null,null,null,null,null,null,null,null,69567,6267]
[null,null,null,null,null,null,null,null,null,null,69568,6268]
[null,null,null,null,null,null,null,null,null,null,69569,6269]
[null,null,null,null,null,null,null,null,null,null,69570,6270]
[null,null,null,null,null,null,null,null,null,null,69571,6271]
[null,null,null,null,null,null,null,null,null,null,69572,6272]
[null,null,null,null,null,null,null,null,null,null,69573,6273]
[null,null,null,null,null,null,null,null,null,null,69574,6274]
[null,null,null,null,null,null,null,null,null,null,69575,6275]
[null,null,null,null,null,null,null,null,null,null,69576,6276]
[null,null,null,null,null,null,null,null,null,null,69577,6277]
[null,null,null,null,null,null,null,null,null,null,69578,6278]
[null,null,null,null,null,null,null,null,null,null,69579,6279]
[null,null,null,null,null,null,null,null,null,null,69580,6280]
[null,null,null,null,null,null,null,null,null,null,69581,6281]
[null,null,null,null,null,null,null,null,null,null,{"$f":"+K83+1","v":69582},6282]
[null,null,null,null,null,null,null,null,null,null,69583,6283]
[null,null,null,null,null,null,null,null,null,null,69584,6284]
[null,null,null,null,null,null,null,null,null,null,69585,6285]
[null,null,null,null,null,null,null,null,null,null,69586,6286]
[null,null,null,null,null,null,null,null,null,null,69587,6287]
[null,null,null,null,null,null,null,null,null,null,69588,6288]
[null,null,null,null,null,null,null,null,null,null,69589,6289]
[null,null,null,null,null,null,null,null,null,null,69590,6290]
[null,null,null,null,null,null,null,null,null,null,69591,6291]
[null,null,null,null,null,null,null,null,null,null,69592,6292]
[null,null,null,null,null,null,null,null,null,null,69593,6293]
[null,null,null,null,null,null,null,null,null,null,69594,6294]
[null,null,null,null,null,null,null,null,null,null,69595,6295]
[null,null,null,null,null,null,null,null,null,null,69596,6296]
[null,null,null,null,null,null,null,null,null,null,69597,6297]
[null,null,null,null,null,null,null,null,null,null,{"$f":"+K99+1","v":69598},6298]
[null,null,null,null,null,null,null,null,null,null,69599,6299]
[null,null,null,null,null,null,null,null,null,null,69600,6300]
[null,null,null,null,null,null,null,null,null,null,69601,6301]
[null,null,null,null,null,null,null,null,null,null,69602,6302]
[null,null,null,null,null,null,null,null,null,null,69603,6303]
[null,null,null,null,null,null,null,null,null,null,69604,6304]
[null,null,null,null,null,null,null,null,null,null,69605,6305]
[null,null,null,null,null,null,null,null,null,null,69606,6306]
[null,null,null,null,null,null,null,null,null,null,69607,6307]
[null,null,null,null,null,null,null,null,null,null,69608,6308]
[null,null,null,null,null,null,null,null,null,null,69609,6309]
[null,null,null,null,null,null,null,null,null,null,69610,6310]
[null,null,null,null,null,null,null,null,null,null,69611,6311]
[null,null,null,null,null,null,null,null,null,null,69612,6312]
[null,null,null,null,null,null,null,null,null,null,69613,6313]
[null,null,null,null,null,null,null,null,null,null,{"$f":"+K115+1","v":69614},6314]
[null,null,null,null,null,null,null,null,null,null,69615,6315]
[null,null,null,null,null,null,null,null,null,null,69616,6316]
[null,null,null,null,null,null,null,null,null,null,69617,6317]
[null,null,null,null,null,null,null,null,null,null,69618,6318]
[null,null,null,null,null,null,null,null,null,null,69619,6319]
[null,null,null,null,null,null,null,null,null,null,69620,6320]
[null,null,null,null,null,null,null,null,null,null,69621,6321]
[null,null,null,null,null,null,null,null,null,null,69622,6322]
[null,null,null,null,null,null,null,null,null,null,69623,6323]
[null,null,null,null,null,null,null,null,null,null,69624,6324]
[null,null,null,null,null,null,null,null,null,null,69625,6325]
[null,null,null,null,null,null,null,null,null,null,69626,6326]
[null,null,null,null,null,null,null,null,null,null,69627,6327]
[null,null,null,null,null,null,null,null,null,null,69628,6328]
[null,null,null,null,null,null,null,null,null,null,69629,6329]
[null,null,null,null,null,null,null,null,null,null,{"$f":"+K131+1","v":69630},6330]
[null,null,null,null,null,null,null,null,null,null,69631,6331]
[null,null,null,null,null,null,null,null,null,null,69632,6332]
[null,null,null,null,null,null,null,null,null,null,69633,6333]
[null,null,null,null,null,null,null,null,null,null,69634,6334]
[null,null,null,null,null,null,null,null,null,null,69635,6335]
[null,null,null,null,null,null,null,null,null,null,69636,6336]
[null,null,null,null,null,null,null,null,null,null,69637,6337]
[null,null,null,null,null,null,null,null,null,null,69638,6338]
[null,null,null,null,null,null,null,null,null,null,69639,6339]
[null,null,null,null,null,null,null,null,null,null,69640,6340]
[null,null,null,null,null,null,null,null,null,null,69641,6341]
[null,null,null,null,null,null,null,null,null,null,69642,6342]
[null,null,null,null,null,null,null,null,null,null,69643,6343]
[null,null,null,null,null,null,null,null,null,null,69644,6344]
[null,null,null,null,null,null,null,null,null,null,69645,6345]
[null,null,null,null,null,null,null,null,null,null,{"$f":"+K147+1","v":69646},6346]
[null,null,null,null,null,null,null,null,null,null,69647,6347]
[null,null,null,null,null,null,null,null,null,null,69648,6348]
[null,null,null,null,null,null,null,null,null,null,69649,6349]
[null,null,null,null,null,null,null,null,null,null,69650,6350]
[null,null,null,null,null,null,null,null,null,null,69651,6351]
[null,null,null,null,null,null,null,null,null,null,69652,6352]
[null,null,null,null,null,null,null,null,null,null,69653,6353]
[null,null,null,null,null,null,null,null,null,null,69654,6354]
[null,null,null,null,null,null,null,null,null,null,69655,6355]
[null,null,null,null,null,null,null,null,null,null,69656,6356]
[null,null,null,null,null,null,null,null,null,null,69657,6357]
[null,null,null,null,null,null,null,null,null,null,69658,6358]
[null,null,null,null,null,null,null,null,null,null,69659,6359]
[null,null,null,null,null,null,null,null,null,null,69660,6360]
[null,null,null,null,null,null,null,null,null,null,69661,6361]
[null,null,null,null,null,null,null,null,null,null,{"$f":"+K163+1","v":69662},6362]
[null,null,null,null,null,null,null,null,null,null,69663,6363]
[null,null,null,null,null,null,null,null,null,null,69664,6364]
[null,null,null,null,null,null,null,null,null,null,69665,6365]
[null,null,null,null,null,null,null,null,null,null,69666,6366]
[null,null,null,null,null,null,null,null,null,null,69667,6367]
[null,null,null,null,null,null,null,null,null,null,69668,6368]
[null,null,null,null,null,null,null,null,null,null,69669,6369]
[null,null,null,null,null,null,null,null,null,null,69670,6370]
[null,null,null,null,null,null,null,null,null,null,69671,6371]
[null,null,null,null,null,null,null,null,null,null,69672,6372]
[null,null,null,null,null,null,null,null,null,null,69673,6373]
[null,null,null,null,null,null,null,null,null,null,69674,6374]
[null,null,null,null,null,null,null,null,null,null,69675,6375]
[null,null,null,null,null,null,null,null,null,null,69676,6376]
[null,null,null,null,null,null,null,null,null,null,69677,6377]
[null,null,null,null,null,null,null,null,null,null,{"$f":"+K179+1","v":69678},6378]
[null,null,null,null,null,null,null,null,null,null,69679,6379]
[null,null,null,null,null,null,null,null,null,null,69680,6380]
[null,null,null,null,null,null,null,null,null,null,69681,6381]
[null,null,null,null,null,null,null,null,null,null,69682,6382]
[null,null,null,null,null,null,null,null,null,null,69683,6383]
[null,null,null,null,null,null,null,null,null,null,69684,6384]
[null,null,null,null,null,null,null,null,null,null,69685,6385]
[null,null,null,null,null,null,null,null,null,null,69686,6386]
[null,null,null,null,null,null,null,null,null,null,69687,6387]
[null,null,null,null,null,null,null,null,null,null,69688,6388]
[null,null,null,null,null,null,null,null,null,null,69689,6389]
[null,null,null,null,null,null,null,null,null,null,69690,6390]
[null,null,null,null,null,null,null,null,null,null,69691,6391]
[null,null,null,null,null,null,null,null,null,null,69692,6392]
[null,null,null,null,null,null,null,null,null,null,69693,6393]
[null,null,null,null,null,null,null,null,null,null,{"$f":"+K195+1","v":69694},6394]
[null,null,null,null,null,null,null,null,null,null,69695,6395]
[null,null,null,null,null,null,null,null,null,null,69696,6396]
[null,null,null,null,null,null,null,null,null,null,69697,6397]
[null,null,null,null,null,null,null,null,null,null,69698,6398]
[null,null,null,null,null,null,null,null,null,null,69699,6399]
[null,null,null,null,null,null,null,null,null,null,69700,6400]
[null,null,null,null,null,null,null,null,null,null,69701,6401]
[null,null,null,null,null,null,null,null,null,null,69702,6402]
[null,null,null,null,null,null,null,null,null,null,69703,6403]
[null,null,null,null,null,null,null,null,null,null,69704,6404]
[null,null,null,null,null,null,null,null,null,null,69705,6405]
[null,null,null,null,null,null,null,null,null,null,69706,6406]
[null,null,null,null,null,null,null,null,null,null,69707,6407]
[null,null,null,null,null,null,null,null,null,null,69708,6408]
[null,null,null,null,null,null,null,null,null,null,69709,6409]
[null,null,null,null,null,null,null,null,null,null,{"$f":"+K211+1","v":69710},6410]
[null,null,null,null,null,null,null,null,null,null,69711,6411]
[null,null,null,null,null,null,null,null,null,null,69712,6412]
[null,null,null,null,null,null,null,null,null,null,69713,6413]
[null,null,null,null,null,null,null,null,null,null,69714,6414]
[null,null,null,null,null,null,null,null,null,null,69715,6415]
[null,null,null,null,null,null,null,null,null,null,69716,6416]
[null,null,null,null,null,null,null,null,null,null,69717,6417]
[null,null,null,null,null,null,null,null,null,null,69718,6418]
[null,null,null,null,null,null,null,null,null,null,69719,6419]
[null,null,null,null,null,null,null,null,null,null,69720,6420]
[null,null,null,null,null,null,null,null,null,null,69721,6421]
[null,null,null,null,null,null,null,null,null,null,69722,6422]
[null,null,null,null,null,null,null,null,null,null,69723,6423]
[null,null,null,null,null,null,null,null,null,null,69724,6424]
[null,null,null,null,null,null,null,null,null,null,69725,6425]
[null,null,null,null,null,null,null,null,null,null,{"$f":"+K227+1","v":69726},6426]
[null,null,null,null,null,null,null,null,null,null,69727,6427]
[null,null,null,null,null,null,null,null,null,null,69728,6428]
[null,null,null,null,null,null,null,null,null,null,69729,6429]
[null,null,null,null,null,null,null,null,null,null,69730,6430]
[null,null,null,null,null,null,null,null,null,null,69731,6431]
[null,null,null,null,null,null,null,null,null,null,69732,6432]
[null,null,null,null,null,null,null,null,null,null,69733,6433]
[null,null,null,null,null,null,null,null,null,null,69734,6434]
[null,null,null,null,null,null,null,null,null,null,69735,6435]
[null,null,null,null,null,null,null,null,null,null,69736,6436]
[null,null,null,null,null,null,null,null,null,null,69737,6437]
[null,null,null,null,null,null,null,null,null,null,69738,6438]
[null,null,null,null,null,null,null,null,null,null,69739,6439]
[null,null,null,null,null,null,null,null,null,null,69740,6440]
[null,null,null,null,null,null,null,null,null,null,69741,6441]
[null,null,null,null,null,null,null,null,null,null,{"$f":"+K243+1","v":69742},6442]
[null,null,null,null,null,null,null,null,null,null,69743,6443]
[null,null,null,null,null,null,null,null,null,null,69744,6444]
[null,null,null,null,null,null,null,null,null,null,69745,6445]
[null,null,null,null,null,null,null,null,null,null,69746,6446]
[null,null,null,null,null,null,null,null,null,null,69747,6447]
[null,null,null,null,null,null,null,null,null,null,69748,6448]
[null,null,null,null,null,null,null,null,null,null,69749,6449]
[null,null,null,null,null,null,null,null,null,null,69750,6450]
[null,null,null,null,null,null,null,null,null,null,69751,6451]
[null,null,null,null,null,null,null,null,null,null,69752,6452]
[null,null,null,null,null,null,null,null,null,null,69753,6453]
[null,null,null,null,null,null,null,null,null,null,69754,6454]
[null,null,null,null,null,null,null,null,null,null,69755,6455]
[null,null,null,null,null,null,null,null,null,null,69756,6456]
[null,null,null,null,null,null,null,null,null,null,69757,6457]
[null,null,null,null,null,null,null,null,null,null,{"$f":"+K259+1","v":69758},6458]
[null,null,null,null,null,null,null,null,null,null,69759,6459]
[null,null,null,null,null,null,null,null,null,null,69760,6460]
[null,null,null,null,null,null,null,null,null,null,69761,6461]
[null,null,null,null,null,null,null,null,null,null,69762,6462]
[null,null,null,null,null,null,null,null,null,null,69763,6463]
[null,null,null,null,null,null,null,null,null,null,69764,6464]
[null,null,null,null,null,null,null,null,null,null,69765,6465]
[null,null,null,null,null,null,null,null,null,null,69766,6466]
[null,null,null,null,null,null,null,null,null,null,69767,6467]
[null,null,null,null,null,null,null,null,null,null,69768,6468]
[null,null,null,null,null,null,null,null,null,null,69769,6469]
[null,null,null,null,null,null,null,null,null,null,69770,6470]
[null,null,null,null,null,null,null,null,null,null,69771,6471]
[null,null,null,null,null,null,null,null,null,null,69772,6472]
[null,null,null,null,null,null,null,null,null,null,69773,6473]
[null,null,null,null,null,null,null,null,null,null,{"$f":"+K275+1","v":69774},6474]
[null,null,null,null,null,null,null,null,null,null,69775,6475]
[null,null,null,null,null,null,null,null,null,null,69776,6476]
[null,null,null,null,null,null,null,null,null,null,69777,6477]
[null,null,null,null,null,null,null,null,null,null,69778,6478]
[null,null,null,null,null,null,null,null,null,null,69779,6479]
[null,null,null,null,null,null,null,null,null,null,69780,6480]
[null,null,null,null,null,null,null,null,null,null,69781,6481]
[null,null,null,null,null,null,null,null,null,null,69782,6482]
[null,null,null,null,null,null,null,null,null,null,69783,6483]
[null,null,null,null,null,null,null,null,null,null,69784,6484]
[null,null,null,null,null,null,null,null,null,null,69785,6485]
[null,null,null,null,null,null,null,null,null,null,69786,6486]
[null,null,null,null,null,null,null,null,null,null,69787,6487]
[null,null,null,null,null,null,null,null,null,null,69788,6488]
[null,null,null,null,null,null,null,null,null,null,69789,6489]
[null,null,null,null,null,null,null,null,null,null,{"$f":"+K291+1","v":69790},6490]
[null,null,null,null,null,null,null,null,null,null,69791,6491]
[null,null,null,null,null,null,null,null,null,null,69792,6492]
[null,null,null,null,null,null,null,null,null,null,69793,6493]
[null,null,null,null,null,null,null,null,null,null,69794,6494]
[null,null,null,null,null,null,null,null,null,null,69795,6495]
[null,null,null,null,null,null,null,null,null,null,69796,6496]
[null,null,null,null,null,null,null,null,null,null,69797,6497]
[null,null,null,null,null,null,null,null,null,null,69798,6498]
[null,null,null,null,null,null,null,null,null,null,69799,6499]
[null,null,null,null,null,null,null,null,null,null,69800,6500]
[null,null,null,null,null,null,null,null,null,null,69801,6501]
[null,null,null,null,null,null,null,null,null,null,69802,6502]
[null,null,null,null,null,null,null,null,null,null,69803,6503]
[null,null,null,null,null,null,null,null,null,null,69804,6504]
[null,null,null,null,null,null,null,null,null,null,69805,6505]
[null,null,null,null,null,null,null,null,null,null,{"$f":"+K307+1","v":69806},6506]
[null,null,null,null,null,null,null,null,null,null,69807,6507]
[null,null,null,null,null,null,null,null,null,null,69808,6508]
[null,null,null,null,null,null,null,null,null,null,69809,6509]
[null,null,null,null,null,null,null,null,null,null,69810,6510]
[null,null,null,null,null,null,null,null,null,null,69811,6511]
[null,null,null,null,null,null,null,null,null,null,69812,6512]
[null,null,null,null,null,null,null,null,null,null,69813,6513]
[null,null,null,null,null,null,null,null,null,null,69814,6514]
[null,null,null,null,null,null,null,null,null,null,69815,6515]
[null,null,null,null,null,null,null,null,null,null,69816,6516]
[null,null,null,null,null,null,null,null,null,null,69817,6517]
[null,null,null,null,null,null,null,null,null,null,69818,6518]
[null,null,null,null,null,null,null,null,null,null,69819,6519]
[null,null,null,null,null,null,null,null,null,null,69820,6520]
[null,null,null,null,null,null,null,null,null,null,69821,6521]
[null,null,null,null,null,null,null,null,null,null,{"$f":"+K323+1","v":69822},6522]
[null,null,null,null,null,null,null,null,null,null,69823,6523]
[null,null,null,null,null,null,null,null,null,null,69824,6524]
[null,null,null,null,null,null,null,null,null,null,69825,6525]
[null,null,null,null,null,null,null,null,null,null,69826,6526]
[null,null,null,null,null,null,null,null,null,null,69827,6527]
[null,null,null,null,null,null,null,null,null,null,69828,6528]
[null,null,null,null,null,null,null,null,null,null,69829,6529]
[null,null,null,null,null,null,null,null,null,null,69830,6530]
[null,null,null,null,null,null,null,null,null,null,69831,6531]
[null,null,null,null,null,null,null,null,null,null,69832,6532]
[null,null,null,null,null,null,null,null,null,null,69833,6533]
[null,null,null,null,null,null,null,null,null,null,69834,6534]
[null,null,null,null,null,null,null,null,null,null,69835,6535]
[null,null,null,null,null,null,null,null,null,null,69836,6536]
[null,null,null,null,null,null,null,null,null,null,69837,6537]
[null,null,null,null,null,null,null,null,null,null,{"$f":"+K339+1","v":69838},6538]
[null,null,null,null,null,null,null,null,null,null,69839,6539]
[null,null,null,null,null,null,null,null,null,null,69840,6540]
[null,null,null,null,null,null,null,null,null,null,69841,6541]
[null,null,null,null,null,null,null,null,null,null,69842,6542]
[null,null,null,null,null,null,null,null,null,null,69843,6543]
[null,null,null,null,null,null,null,null,null,null,69844,6544]
[null,null,null,null,null,null,null,null,null,null,69845,6545]
[null,null,null,null,null,null,null,null,null,null,69846,6546]
[null,null,null,null,null,null,null,null,null,null,69847,6547]
[null,null,null,null,null,null,null,null,null,null,69848,6548]
[null,null,null,null,null,null,null,null,null,null,69849,6549]
[null,null,null,null,null,null,null,null,null,null,69850,6550]
[null,null,null,null,null,null,null,null,null,null,69851,6551]
[null,null,null,null,null,null,null,null,null,null,69852,6552]
[null,null,null,null,null,null,null,null,null,null,69853,6553]
[null,null,null,null,null,null,null,null,null,null,{"$f":"+K355+1","v":69854},6554]
[null,null,null,null,null,null,null,null,null,null,69855,6555]
[null,null,null,null,null,null,null,null,null,null,69856,6556]
[null,null,null,null,null,null,null,null,null,null,69857,6557]
[null,null,null,null,null,null,null,null,null,null,69858,6558]
[null,null,null,null,null,null,null,null,null,null,69859,6559]
[null,null,null,null,null,null,null,null,null,null,69860,6560]
[null,null,null,null,null,null,null,null,null,null,69861,6561]
[null,null,null,null,null,null,null,null,null,null,69862,6562]
[null,null,null,null,null,null,null,null,null,null,69863,6563]
[null,null,null,null,null,null,null,null,null,null,69864,6564]
[null,null,null,null,null,null,null,null,null,null,69865,6565]
[null,null,null,null,null,null,null,null,null,null,69866,6566]
[null,null,null,null,null,null,null,null,null,null,69867,6567]
[null,null,null,null,null,null,null,null,null,null,69868,6568]
[null,null,null,null,null,null,null,null,null,null,69869,6569]
[null,null,null,null,null,null,null,null,null,null,{"$f":"+K371+1","v":69870},6570]
[null,null,null,null,null,null,null,null,null,null,69871,6571]
[null,null,null,null,null,null,null,null,null,null,69872,6572]
[null,null,null,null,null,null,null,null,null,null,69873,6573]
[null,null,null,null,null,null,null,null,null,null,69874,6574]
[null,null,null,null,null,null,null,null,null,null,69875,6575]
[null,null,null,null,null,null,null,null,null,null,69876,6576]
[null,null,null,null,null,null,null,null,null,null,69877,6577]
[null,null,null,null,null,null,null,null,null,null,69878,6578]
[null,null,null,null,null,null,null,null,null,null,69879,6579]
[null,null,null,null,null,null,null,null,null,null,69880,6580]
[null,null,null,null,null,null,null,null,null,null,69881,6581]
[null,null,null,null,null,null,null,null,null,null,69882,6582]
[null,null,null,null,null,null,null,null,null,null,69883,6583]
[null,null,null,null,null,null,null,null,null,null,69884,6584]
[null,null,null,null,null,null,null,null,null,null,69885,6585]
[null,null,null,null,null,null,null,null,null,null,{"$f":"+K387+1","v":69886},6586]
[null,null,null,null,null,null,null,null,null,null,69887,6587]
[null,null,null,null,null,null,null,null,null,null,69888,6588]
[null,null,null,null,null,null,null,null,null,null,69889,6589]
[null,null,null,null,null,null,null,null,null,null,69890,6590]
[null,null,null,null,null,null,null,null,null,null,69891,6591]
[null,null,null,null,null,null,null,null,null,null,69892,6592]
[null,null,null,null,null,null,null,null,null,null,69893,6593]
[null,null,null,null,null,null,null,null,null,null,69894,6594]
[null,null,null,null,null,null,null,null,null,null,69895,6595]
[null,null,null,null,null,null,null,null,null,null,69896,6596]
[null,null,null,null,null,null,null,null,null,null,69897,6597]
[null,null,null,null,null,null,null,null,null,null,69898,6598]
[null,null,null,null,null,null,null,null,null,null,69899,6599]
[null,null,null,null,null,null,null,null,null,null,69900,6600]
[null,null,null,null,null,null,null,null,null,null,69901,6601]
[null,null,null,null,null,null,null,null,null,null,{"$f":"+K403+1","v":69902},6602]
[null,null,null,null,null,null,null,null,null,null,69903,6603]
[null,null,null,null,null,null,null,null,null,null,69904,6604]
[null,null,null,null,null,null,null,null,null,null,69905,6605]
[null,null,null,null,null,null,null,null,null,null,69906,6606]
[null,null,null,null,null,null,null,null,null,null,69907,6607]
[null,null,null,null,null,null,null,null,null,null,69908,6608]
[null,null,null,null,null,null,null,null,null,null,69909,6609]
[null,null,null,null,null,null,null,null,null,null,69910,6610]
[null,null,null,null,null,null,null,null,null,null,69911,6611]
[null,null,null,null,null,null,null,null,null,null,69912,6612]
[null,null,null,null,null,null,null,null,null,null,69913,6613]
[null,null,null,null,null,null,null,null,null,null,69914,6614]
[null,null,null,null,null,null,null,null,null,null,69915,6615]
[null,null,null,null,null,null,null,null,null,null,69916,6616]
[null,null,null,null,null,null,null,null,null,null,69917,6617]
[null,null,null,null,null,null,null,null,null,null,{"$f":"+K419+1","v":69918},6618]
[null,null,null,null,null,null,null,null,null,null,69919,6619]
[null,null,null,null,null,null,null,null,null,null,69920,6620]
[null,null,null,null,null,null,null,null,null,null,69921,6621]
[null,null,null,null,null,null,null,null,null,null,69922,6622]
[null,null,null,null,null,null,null,null,null,null,69923,6623]
[null,null,null,null,null,null,null,null,null,null,69924,6624]
[null,null,null,null,null,null,null,null,null,null,69925,6625]
[null,null,null,null,null,null,null,null,null,null,69926,6626]
[null,null,null,null,null,null,null,null,null,null,69927,6627]
[null,null,null,null,null,null,null,null,null,null,69928,6628]
[null,null,null,null,null,null,null,null,null,null,69929,6629]
[null,null,null,null,null,null,null,null,null,null,69930,6630]
[null,null,null,null,null,null,null,null,null,null,69931,6631]
[null,null,null,null,null,null,null,null,null,null,69932,6632]
[null,null,null,null,null,null,null,null,null,null,69933,6633]
[null,null,null,null,null,null,null,null,null,null,{"$f":"+K435+1","v":69934},6634]
[null,null,null,null,null,null,null,null,null,null,69935,6635]
[null,null,null,null,null,null,null,null,null,null,69936,6636]
[null,null,null,null,null,null,null,null,null,null,69937,6637]
[null,null,null,null,null,null,null,null,null,null,69938,6638]
[null,null,null,null,null,null,null,null,null,null,69939,6639]
[null,null,null,null,null,null,null,null,null,null,69940,6640]
[null,null,null,null,null,null,null,null,null,null,69941,6641]
[null,null,null,null,null,null,null,null,null,null,69942,6642]
[null,null,null,null,null,null,null,null,null,null,69943,6643]
[null,null,null,null,null,null,null,null,null,null,69944,6644]
[null,null,null,null,null,null,null,null,null,null,69945,6645]
[null,null,null,null,null,null,null,null,null,null,69946,6646]
[null,null,null,null,null,null,null,null,null,null,69947,6647]
[null,null,null,null,null,null,null,null,null,null,69948,6648]
[null,null,null,null,null,null,null,null,null,null,69949,6649]
[null,null,null,null,null,null,null,null,null,null,{"$f":"+K451+1","v":69950},6650]
[null,null,null,null,null,null,null,null,null,null,69951,6651]
[null,null,null,null,null,null,null,null,null,null,69952,6652]
[null,null,null,null,null,null,null,null,null,null,69953,6653]
[null,null,null,null,null,null,null,null,null,null,69954,6654]
[null,null,null,null,null,null,null,null,null,null,69955,6655]
[null,null,null,null,null,null,null,null,null,null,69956,6656]
[null,null,null,null,null,null,null,null,null,null,69957,6657]
[null,null,null,null,null,null,null,null,null,null,69958,6658]
[null,null,null,null,null,null,null,null,null,null,69959,6659]
[null,null,null,null,null,null,null,null,null,null,69960,6660]
[null,null,null,null,null,null,null,null,null,null,69961,6661]
[null,null,null,null,null,null,null,null,null,null,69962,6662]
[null,null,null,null,null,null,null,null,null,null,69963,6663]
[null,null,null,null,null,null,null,null,null,null,69964,6664]
[null,null,null,null,null,null,null,null,null,null,69965,6665]
[null,null,null,null,null,null,null,null,null,null,{"$f":"+K467+1","v":69966},6666]
[null,null,null,null,null,null,null,null,null,null,69967,6667]
[null,null,null,null,null,null,null,null,null,null,69968,6668]
[null,null,null,null,null,null,null,null,null,null,69969,6669]
[null,null,null,null,null,null,null,null,null,null,69970,6670]
[null,null,null,null,null,null,null,null,null,null,69971,6671]
[null,null,null,null,null,null,null,null,null,null,69972,6672]
[null,null,null,null,null,null,null,null,null,null,69973,6673]
[null,null,null,null,null,null,null,null,null,null,69974,6674]
[null,null,null,null,null,null,null,null,null,null,69975,6675]
[null,null,null,null,null,null,null,null,null,null,69976,6676]
[null,null,null,null,null,null,null,null,null,null,69977,6677]
[null,null,null,null,null,null,null,null,null,null,69978,6678]
[null,null,null,null,null,null,null,null,null,null,69979,6679]
[null,null,null,null,null,null,null,null,null,null,69980,6680]
[null,null,null,null,null,null,null,null,null,null,69981,6681]
[null,null,null,null,null,null,null,null,null,null,{"$f":"+K483+1","v":69982},6682]
[null,null,null,null,null,null,null,null,null,null,69983,6683]
[null,null,null,null,null,null,null,null,null,null,69984,6684]
[null,null,null,null,null,null,null,null,null,null,69985,6685]
[null,null,null,null,null,null,null,null,null,null,69986,6686]
[null,null,null,null,null,null,null,null,null,null,69987,6687]
[null,null,null,null,null,null,null,null,null,null,69988,6688]
[null,null,null,null,null,null,null,null,null,null,69989,6689]
[null,null,null,null,null,null,null,null,null,null,69990,6690]
[null,null,null,null,null,null,null,null,null,null,69991,6691]
[null,null,null,null,null,null,null,null,null,null,69992,6692]
[null,null,null,null,null,null,null,null,null,null,69993,6693]
[null,null,null,null,null,null,null,null,null,null,69994,6694]
[null,null,null,null,null,null,null,null,null,null,69995,6695]
[null,null,null,null,null,null,null,null,null,null,69996,6696]
[null,null,null,null,null,null,null,null,null,null,69997,6697]
[null,null,null,null,null,null,null,null,null,null,{"$f":"+K499+1","v":69998},6698]
[null,null,null,null,null,null,null,null,null,null,69999,6699]
[null,null,null,null,null,null,null,null,null,null,70000,6700]